[Event "Early-Titled-Tuesday-Blitz-April-16-2024"]
[Site "Chess.com"]
[Date "2024.04.16"]
[Round "3"]
[White "IM_ArthurDW08"]
[Black "DeArron_Fox"]
[Result "1-0"]
[WhiteElo "2741"]
[BlackElo "2519"]
[TimeControl "180+1"]
[EndTime "8:27:57 PDT"]
[Termination "IM_ArthurDW08 won on time"]

1. e4 {[%clk 0:03:00.9]} 1... c5 {[%clk 0:02:48.9]} 2. Nf3 {[%clk 0:03:00.6]}
2... e6 {[%clk 0:02:49.5]} 3. d4 {[%clk 0:02:54.9]} 3... cxd4 {[%clk 0:02:50.4]}
4. Nxd4 {[%clk 0:02:51.7]} 4... a6 {[%clk 0:02:50.3]} 5. g4 {[%clk 0:02:43.5]}
5... Nf6 {[%clk 0:02:24.8]} 6. Nc3 {[%clk 0:02:38.3]} 6... d6 {[%clk 0:02:12.8]}
7. g5 {[%clk 0:02:37.6]} 7... Nfd7 {[%clk 0:02:11.7]} 8. h4 {[%clk 0:02:35.8]}
8... b5 {[%clk 0:01:59.8]} 9. a3 {[%clk 0:02:35.2]} 9... Bb7 {[%clk 0:01:59.5]}
10. h5 {[%clk 0:02:32.6]} 10... Nc6 {[%clk 0:01:42.4]} 11. Nxc6 {[%clk
0:02:21.5]} 11... Bxc6 {[%clk 0:01:43.3]} 12. Be3 {[%clk 0:02:18.2]} 12... Nc5
{[%clk 0:00:16.3]} 13. Qg4 {[%clk 0:01:51]} 13... Qc7 {[%clk 0:00:06.3]} 14.
O-O-O {[%clk 0:01:41.4]} 14... Rb8 {[%clk 0:00:03.7]} 15. b4 {[%clk 0:01:23.1]}
15... Na4 {[%clk 0:00:02.5]} 16. Nxa4 {[%clk 0:01:20.5]} 16... bxa4 {[%clk
0:00:03.4]} 17. Bxa6 {[%clk 0:01:16.1]} 17... d5 {[%clk 0:00:03.6]} 18. g6
{[%clk 0:01:14.1]} 18... hxg6 {[%clk 0:00:03]} 19. hxg6 {[%clk 0:01:15]} 19...
Rxh1 {[%clk 0:00:03.3]} 20. Rxh1 {[%clk 0:01:14.4]} 20... dxe4 {[%clk
0:00:02.2]} 21. Bf4 {[%clk 0:01:02.4]} 21... e5 {[%clk 0:00:02.4]} 22. gxf7+
{[%clk 0:01:01.7]} 22... Qxf7 {[%clk 0:00:02.1]} 23. Bxe5 {[%clk 0:01:00.6]}
23... Ra8 {[%clk 0:00:02.1]} 24. Rd1 {[%clk 0:00:46.8]} 24... Rxa6 {[%clk
0:00:01.4]} 25. Qc8+ {[%clk 0:00:45.9]} 25... Ke7 {[%clk 0:00:01.8]} 26. Qxa6
{[%clk 0:00:42.7]} 1-0

[Event "Early-Titled-Tuesday-Blitz-April-16-2024"]
[Site "Chess.com"]
[Date "2024.04.16"]
[Round "3"]
[White "colegiodemadrid"]
[Black "pfalcon1949"]
[Result "1-0"]
[WhiteElo "2542"]
[BlackElo "1919"]
[TimeControl "180+1"]
[EndTime "8:27:57 PDT"]
[Termination "colegiodemadrid won by resignation"]

1. Nf3 {[%clk 0:03:00]} 1... d5 {[%clk 0:02:59.3]} 2. g3 {[%clk 0:02:58.4]} 2...
Nf6 {[%clk 0:02:58.9]} 3. Bg2 {[%clk 0:02:59.3]} 3... e6 {[%clk 0:02:59.2]} 4.
c4 {[%clk 0:02:58]} 4... Be7 {[%clk 0:02:57.2]} 5. b3 {[%clk 0:02:57.6]} 5...
O-O {[%clk 0:02:56.6]} 6. Bb2 {[%clk 0:02:57.8]} 6... c6 {[%clk 0:02:54.3]} 7.
e3 {[%clk 0:02:58]} 7... Nbd7 {[%clk 0:02:54.3]} 8. Nc3 {[%clk 0:02:57.2]} 8...
b6 {[%clk 0:02:54.7]} 9. Rc1 {[%clk 0:02:56.9]} 9... Bb7 {[%clk 0:02:55.1]} 10.
O-O {[%clk 0:02:55.9]} 10... Rc8 {[%clk 0:02:55.6]} 11. Re1 {[%clk 0:02:55.7]}
11... a6 {[%clk 0:02:56.2]} 12. d3 {[%clk 0:02:48.2]} 12... Re8 {[%clk
0:02:56.4]} 13. e4 {[%clk 0:02:45.4]} 13... Nf8 {[%clk 0:02:55.9]} 14. e5 {[%clk
0:02:45.4]} 14... N6d7 {[%clk 0:02:55]} 15. cxd5 {[%clk 0:02:44]} 15... cxd5
{[%clk 0:02:53.9]} 16. d4 {[%clk 0:02:43.8]} 16... Bb4 {[%clk 0:02:49.7]} 17. h4
{[%clk 0:02:38.7]} 17... h6 {[%clk 0:02:43.4]} 18. Re3 {[%clk 0:02:38.4]} 18...
Ng6 {[%clk 0:02:36.6]} 19. Ne2 {[%clk 0:02:38.4]} 19... Ne7 {[%clk 0:02:36]} 20.
a3 {[%clk 0:02:34.5]} 20... Nf5 {[%clk 0:02:25.4]} 21. axb4 {[%clk 0:02:31.6]}
21... Nxe3 {[%clk 0:02:25.3]} 22. fxe3 {[%clk 0:02:32.1]} 22... Qe7 {[%clk
0:02:15.6]} 23. Bc3 {[%clk 0:02:24]} 23... f6 {[%clk 0:02:10.4]} 24. exf6 {[%clk
0:02:22]} 24... Nxf6 {[%clk 0:02:10.2]} 25. Ne5 {[%clk 0:02:17.4]} 25... Ne4
{[%clk 0:02:00.1]} 26. Bxe4 {[%clk 0:02:16.8]} 26... dxe4 {[%clk 0:02:00.7]} 27.
Nf4 {[%clk 0:02:16.1]} 27... Bd5 {[%clk 0:01:56.8]} 28. Kh2 {[%clk 0:02:05.2]}
28... b5 {[%clk 0:01:49.4]} 29. Be1 {[%clk 0:01:59.6]} 29... g5 {[%clk
0:01:45.6]} 30. Nfg6 {[%clk 0:01:58.2]} 30... Qf6 {[%clk 0:01:40.4]} 31. Ng4
{[%clk 0:01:44.1]} 31... Qxg6 {[%clk 0:01:27.5]} 32. h5 {[%clk 0:01:43.7]} 32...
Qg7 {[%clk 0:01:23.2]} 33. Rc5 {[%clk 0:01:37.8]} 33... Rxc5 {[%clk 0:01:20.8]}
34. bxc5 {[%clk 0:01:38.7]} 34... Kh7 {[%clk 0:01:19.5]} 35. Ba5 {[%clk
0:01:34.6]} 35... Rf8 {[%clk 0:01:16.6]} 36. Ne5 {[%clk 0:01:33.8]} 36... Qf6
{[%clk 0:01:12.5]} 37. Qe2 {[%clk 0:01:30.9]} 37... Qf2+ {[%clk 0:01:11.1]} 38.
Qxf2 {[%clk 0:01:31.2]} 38... Rxf2+ {[%clk 0:01:11.3]} 39. Kg1 {[%clk
0:01:31.9]} 39... Rb2 {[%clk 0:01:09.2]} 40. b4 {[%clk 0:01:31.7]} 40... Kg7
{[%clk 0:01:02.4]} 41. c6 {[%clk 0:01:31.4]} 41... Bxc6 {[%clk 0:00:50.3]} 42.
Nxc6 {[%clk 0:01:31]} 42... Re2 {[%clk 0:00:49.3]} 43. Bb6 {[%clk 0:01:23.9]}
43... Rxe3 {[%clk 0:00:48.8]} 44. d5 {[%clk 0:01:23.9]} 44... exd5 {[%clk
0:00:46.7]} 45. Bxe3 {[%clk 0:01:23.5]} 45... Kf6 {[%clk 0:00:46]} 46. g4 {[%clk
0:01:21]} 46... Ke6 {[%clk 0:00:45.7]} 47. Nd4+ {[%clk 0:01:20.6]} 47... Ke5
{[%clk 0:00:44.7]} 48. Kf2 {[%clk 0:01:21.5]} 48... Kd6 {[%clk 0:00:43.2]} 49.
Nf5+ {[%clk 0:01:21.5]} 49... Ke5 {[%clk 0:00:41.8]} 50. Kg3 {[%clk 0:01:18.1]}
50... Ke6 {[%clk 0:00:37.5]} 51. Nxh6 {[%clk 0:01:18.3]} 51... Ke5 {[%clk
0:00:36.2]} 52. Nf5 {[%clk 0:01:18.6]} 52... Ke6 {[%clk 0:00:35.4]} 53. h6
{[%clk 0:01:18.8]} 53... Ke5 {[%clk 0:00:35.8]} 54. h7 {[%clk 0:01:18.8]} 1-0

[Event "Early-Titled-Tuesday-Blitz-April-16-2024"]
[Site "Chess.com"]
[Date "2024.04.16"]
[Round "3"]
[White "PedroGil25"]
[Black "Yeritsyaan"]
[Result "0-1"]
[WhiteElo "2501"]
[BlackElo "2659"]
[TimeControl "180+1"]
[EndTime "8:28:00 PDT"]
[Termination "Yeritsyaan won by resignation"]

1. c4 {[%clk 0:02:59.1]} 1... Nf6 {[%clk 0:02:59.5]} 2. Nf3 {[%clk 0:02:59]}
2... e6 {[%clk 0:02:59]} 3. g3 {[%clk 0:02:59]} 3... c5 {[%clk 0:02:59]} 4. Bg2
{[%clk 0:02:59.3]} 4... b6 {[%clk 0:02:59.3]} 5. O-O {[%clk 0:02:59.5]} 5... Bb7
{[%clk 0:03:00]} 6. b3 {[%clk 0:02:59.9]} 6... d6 {[%clk 0:03:00.2]} 7. Bb2
{[%clk 0:03:00.4]} 7... Be7 {[%clk 0:03:01]} 8. Nc3 {[%clk 0:03:00.9]} 8... a6
{[%clk 0:03:01.2]} 9. Rc1 {[%clk 0:03:01.3]} 9... O-O {[%clk 0:03:01.3]} 10. Re1
{[%clk 0:03:00.6]} 10... Nbd7 {[%clk 0:03:00.4]} 11. e4 {[%clk 0:03:00.6]} 11...
Qc7 {[%clk 0:03:01]} 12. d4 {[%clk 0:03:00.6]} 12... cxd4 {[%clk 0:03:01.9]} 13.
Nxd4 {[%clk 0:03:01.1]} 13... Rac8 {[%clk 0:03:02.4]} 14. Qe2 {[%clk 0:02:58.3]}
14... Qb8 {[%clk 0:03:02.3]} 15. h3 {[%clk 0:02:57.3]} 15... Rfe8 {[%clk
0:03:02.4]} 16. Red1 {[%clk 0:02:56.8]} 16... Bf8 {[%clk 0:03:02]} 17. Qd2
{[%clk 0:02:50.9]} 17... g6 {[%clk 0:03:01.4]} 18. Kh2 {[%clk 0:02:34.4]} 18...
Nc5 {[%clk 0:02:55.9]} 19. Re1 {[%clk 0:02:33.2]} 19... Qa8 {[%clk 0:02:54.3]}
20. Qc2 {[%clk 0:02:26.1]} 20... Bg7 {[%clk 0:02:53.2]} 21. Rcd1 {[%clk
0:02:17.6]} 21... h5 {[%clk 0:02:49.6]} 22. Kh1 {[%clk 0:02:14.7]} 22... h4
{[%clk 0:02:40]} 23. g4 {[%clk 0:02:14.7]} 23... Qb8 {[%clk 0:02:39.7]} 24. f4
{[%clk 0:02:11.5]} 24... d5 {[%clk 0:02:27.2]} 25. e5 {[%clk 0:02:11.5]} 25...
Nfe4 {[%clk 0:02:26.4]} 26. Nxe4 {[%clk 0:02:11.7]} 26... Nxe4 {[%clk 0:02:26]}
27. Kh2 {[%clk 0:02:11.3]} 27... g5 {[%clk 0:02:25.1]} 28. Nf3 {[%clk
0:01:45.3]} 28... gxf4 {[%clk 0:02:20.6]} 29. Qb1 {[%clk 0:01:36.2]} 29... b5
{[%clk 0:02:09.5]} 30. cxb5 {[%clk 0:01:24]} 30... axb5 {[%clk 0:02:08.4]} 31.
Rc1 {[%clk 0:01:23.6]} 31... b4 {[%clk 0:02:07.5]} 32. Qd3 {[%clk 0:01:16.5]}
32... Rxc1 {[%clk 0:02:02.5]} 33. Rxc1 {[%clk 0:01:17.4]} 33... Rc8 {[%clk
0:02:02.7]} 34. Rxc8+ {[%clk 0:01:15.4]} 34... Qxc8 {[%clk 0:02:02.5]} 35. Nxh4
{[%clk 0:01:15.6]} 35... Ba6 {[%clk 0:01:57.3]} 36. Qd1 {[%clk 0:01:11.3]} 36...
Nc3 {[%clk 0:01:54.3]} 37. Qc2 {[%clk 0:01:11.5]} 37... Bxe5 {[%clk 0:01:53.3]}
38. Nf3 {[%clk 0:01:12.1]} 38... Bg7 {[%clk 0:01:51.3]} 39. Ng5 {[%clk 0:01:10]}
39... Qc7 {[%clk 0:01:32.2]} 40. Qh7+ {[%clk 0:01:09.4]} 40... Kf8 {[%clk
0:01:32.2]} 41. Nf3 {[%clk 0:01:08]} 41... Be2 {[%clk 0:01:23.5]} 42. g5 {[%clk
0:01:06.5]} 42... e5 {[%clk 0:01:12.5]} 43. g6 {[%clk 0:01:05.6]} 43... Bxf3
{[%clk 0:01:09.8]} 44. Bxf3 {[%clk 0:01:00.7]} 44... e4 {[%clk 0:01:09.4]} 45.
gxf7 {[%clk 0:01:01.1]} 45... Qxf7 {[%clk 0:01:06.1]} 46. Bh5 {[%clk 0:01:00.1]}
46... Qf6 {[%clk 0:01:03.7]} 47. Bg4 {[%clk 0:00:51.8]} 47... f3 {[%clk
0:01:00.8]} 48. Kg1 {[%clk 0:00:44.6]} 48... Ne2+ {[%clk 0:00:58.2]} 0-1

[Event "Early-Titled-Tuesday-Blitz-April-16-2024"]
[Site "Chess.com"]
[Date "2024.04.16"]
[Round "3"]
[White "shirovin"]
[Black "bobo_panda"]
[Result "0-1"]
[WhiteElo "2053"]
[BlackElo "2348"]
[TimeControl "180+1"]
[EndTime "8:28:00 PDT"]
[Termination "bobo_panda won on time"]

1. e4 {[%clk 0:03:00.9]} 1... c5 {[%clk 0:02:58.7]} 2. Nf3 {[%clk 0:02:59.8]}
2... d6 {[%clk 0:02:58.9]} 3. Bb5+ {[%clk 0:02:59.7]} 3... Nd7 {[%clk
0:02:58.6]} 4. c3 {[%clk 0:02:50.8]} 4... a6 {[%clk 0:02:58.1]} 5. Bd3 {[%clk
0:02:49.8]} 5... Ngf6 {[%clk 0:02:57.9]} 6. Bc2 {[%clk 0:02:48.9]} 6... g6
{[%clk 0:02:58.2]} 7. d4 {[%clk 0:02:47.8]} 7... e5 {[%clk 0:02:48.2]} 8. O-O
{[%clk 0:02:36.4]} 8... Bg7 {[%clk 0:02:47.5]} 9. h3 {[%clk 0:02:32.9]} 9... O-O
{[%clk 0:02:47.1]} 10. Be3 {[%clk 0:02:31.7]} 10... b6 {[%clk 0:02:42.6]} 11.
Qd2 {[%clk 0:02:12.9]} 11... Bb7 {[%clk 0:02:41]} 12. d5 {[%clk 0:02:09]} 12...
c4 {[%clk 0:02:40.3]} 13. a4 {[%clk 0:01:59.3]} 13... Rc8 {[%clk 0:02:39.3]} 14.
Na3 {[%clk 0:01:42.7]} 14... Nc5 {[%clk 0:02:38.7]} 15. Bg5 {[%clk 0:01:25.6]}
15... Nfxe4 {[%clk 0:02:30.3]} 16. Bxd8 {[%clk 0:01:06]} 16... Nxd2 {[%clk
0:02:30]} 17. Nxd2 {[%clk 0:01:05.8]} 17... Rfxd8 {[%clk 0:02:28.4]} 18. Naxc4
{[%clk 0:01:00.2]} 18... b5 {[%clk 0:02:02.2]} 19. axb5 {[%clk 0:00:57.7]} 19...
axb5 {[%clk 0:02:02]} 20. Ne3 {[%clk 0:00:58.2]} 20... f5 {[%clk 0:02:00.7]} 21.
b4 {[%clk 0:00:51.1]} 21... Na6 {[%clk 0:01:26.9]} 22. Ra3 {[%clk 0:00:40.9]}
22... f4 {[%clk 0:01:20.2]} 23. Ng4 {[%clk 0:00:29.8]} 23... Nc7 {[%clk
0:01:19.3]} 24. Be4 {[%clk 0:00:20.3]} 24... Bxd5 {[%clk 0:01:18.2]} 25. Rfa1
{[%clk 0:00:12.2]} 25... Be6 {[%clk 0:00:59.4]} 26. Ra7 {[%clk 0:00:10.3]} 26...
Nd5 {[%clk 0:00:58.8]} 27. Bxd5 {[%clk 0:00:06.6]} 27... Bxd5 {[%clk 0:00:59.7]}
28. R1a3 {[%clk 0:00:06.2]} 28... h5 {[%clk 0:00:57]} 29. Nh2 {[%clk 0:00:04.8]}
29... e4 {[%clk 0:00:56]} 30. Nhf1 {[%clk 0:00:02.8]} 30... Bxc3 {[%clk
0:00:55.4]} 31. Nb1 {[%clk 0:00:02.4]} 31... Bxb4 {[%clk 0:00:55.2]} 32. R3a6
{[%clk 0:00:01.6]} 32... Bc5 {[%clk 0:00:53.2]} 0-1

[Event "Early-Titled-Tuesday-Blitz-April-16-2024"]
[Site "Chess.com"]
[Date "2024.04.16"]
[Round "3"]
[White "Nikolakis2014"]
[Black "Orphanator2009"]
[Result "1/2-1/2"]
[WhiteElo "2727"]
[BlackElo "2524"]
[TimeControl "180+1"]
[EndTime "8:28:01 PDT"]
[Termination "Game drawn by agreement"]

1. Nf3 {[%clk 0:03:00.9]} 1... Nf6 {[%clk 0:02:59.4]} 2. c4 {[%clk 0:02:59.4]}
2... e6 {[%clk 0:02:59.7]} 3. g3 {[%clk 0:02:59.2]} 3... d5 {[%clk 0:03:00]} 4.
d4 {[%clk 0:02:59.1]} 4... Be7 {[%clk 0:02:59.7]} 5. Bg2 {[%clk 0:02:59.2]} 5...
O-O {[%clk 0:03:00.3]} 6. O-O {[%clk 0:02:59.4]} 6... dxc4 {[%clk 0:03:01.1]} 7.
Qc2 {[%clk 0:02:59.7]} 7... a6 {[%clk 0:03:00.9]} 8. a4 {[%clk 0:02:59.8]} 8...
Bd7 {[%clk 0:03:01.1]} 9. Qxc4 {[%clk 0:03:00]} 9... Bc6 {[%clk 0:03:01.3]} 10.
Bf4 {[%clk 0:03:00.2]} 10... Bd6 {[%clk 0:03:00.6]} 11. Qc1 {[%clk 0:02:59.6]}
11... Bxf4 {[%clk 0:02:55.8]} 12. Qxf4 {[%clk 0:02:58.7]} 12... a5 {[%clk
0:02:56.5]} 13. Nc3 {[%clk 0:02:58.6]} 13... Bxf3 {[%clk 0:02:54.2]} 14. Bxf3
{[%clk 0:02:56.5]} 14... c6 {[%clk 0:02:55.1]} 15. Rfd1 {[%clk 0:02:55.8]} 15...
Na6 {[%clk 0:02:54.8]} 16. e4 {[%clk 0:02:53.5]} 16... Nb4 {[%clk 0:02:54.5]}
17. Rac1 {[%clk 0:02:52.3]} 17... Qe7 {[%clk 0:02:52.7]} 18. Qe3 {[%clk
0:02:22.1]} 18... Rfe8 {[%clk 0:02:44.6]} 19. e5 {[%clk 0:02:14.2]} 19... Nfd5
{[%clk 0:02:43.5]} 20. Bxd5 {[%clk 0:02:14.4]} 20... Nxd5 {[%clk 0:02:38.7]} 21.
Nxd5 {[%clk 0:02:10.2]} 21... cxd5 {[%clk 0:02:39.6]} 22. Qb3 {[%clk 0:02:06.6]}
22... Rec8 {[%clk 0:02:26.9]} 23. Rc2 {[%clk 0:01:31.2]} 23... Rc7 {[%clk
0:01:24.5]} 24. Rdc1 {[%clk 0:01:28.5]} 24... Rac8 {[%clk 0:01:23.6]} 25. Qxb7
{[%clk 0:01:20]} 25... Rxb7 {[%clk 0:01:11]} 26. Rxc8+ {[%clk 0:01:19]} 26...
Qf8 {[%clk 0:01:11.2]} 27. R1c5 {[%clk 0:01:14.4]} 27... Rxb2 {[%clk 0:01:07.3]}
28. Rxf8+ {[%clk 0:01:01.7]} 28... Kxf8 {[%clk 0:01:08.2]} 29. Rxa5 {[%clk
0:01:01.8]} 29... Rb4 {[%clk 0:01:07.1]} 30. Ra8+ {[%clk 0:00:58.5]} 30... Ke7
{[%clk 0:01:06.7]} 31. Ra7+ {[%clk 0:00:39.5]} 31... Kf8 {[%clk 0:01:05.3]} 32.
a5 {[%clk 0:00:37.9]} 32... Rxd4 {[%clk 0:01:04.3]} 33. Rb7 {[%clk 0:00:36.3]}
33... Ra4 {[%clk 0:01:03.4]} 34. Rb5 {[%clk 0:00:36.4]} 34... d4 {[%clk
0:00:52.7]} 35. f4 {[%clk 0:00:33]} 35... Ra2 {[%clk 0:00:51.6]} 36. Rb4 {[%clk
0:00:20.5]} 36... Rxa5 {[%clk 0:00:50.8]} 37. Rxd4 {[%clk 0:00:20.7]} 37... g6
{[%clk 0:00:51.2]} 38. Kg2 {[%clk 0:00:20.6]} 38... h5 {[%clk 0:00:47.4]}
1/2-1/2

[Event "Early-Titled-Tuesday-Blitz-April-16-2024"]
[Site "Chess.com"]
[Date "2024.04.16"]
[Round "3"]
[White "ansko1999"]
[Black "DanylaBagrov"]
[Result "1-0"]
[WhiteElo "2637"]
[BlackElo "2471"]
[TimeControl "180+1"]
[EndTime "8:28:05 PDT"]
[Termination "ansko1999 won by resignation"]

1. c4 {[%clk 0:03:00.9]} 1... e6 {[%clk 0:02:56.2]} 2. d4 {[%clk 0:02:59.5]}
2... d5 {[%clk 0:02:56.8]} 3. Nc3 {[%clk 0:02:59.4]} 3... c5 {[%clk 0:02:57.3]}
4. cxd5 {[%clk 0:02:53.5]} 4... exd5 {[%clk 0:02:58.2]} 5. Nf3 {[%clk
0:02:53.3]} 5... Nc6 {[%clk 0:02:58.6]} 6. g3 {[%clk 0:02:53.2]} 6... Nf6 {[%clk
0:02:58.9]} 7. Bg2 {[%clk 0:02:52.9]} 7... c4 {[%clk 0:02:58.9]} 8. O-O {[%clk
0:02:48.3]} 8... Bb4 {[%clk 0:02:59.3]} 9. Bd2 {[%clk 0:02:39.3]} 9... O-O
{[%clk 0:02:57.5]} 10. b3 {[%clk 0:02:18.7]} 10... Bxc3 {[%clk 0:02:33.7]} 11.
Bxc3 {[%clk 0:02:19.6]} 11... Ne4 {[%clk 0:02:34]} 12. Be1 {[%clk 0:02:13.6]}
12... b5 {[%clk 0:02:33.9]} 13. a4 {[%clk 0:02:11.6]} 13... Qb6 {[%clk
0:02:05.5]} 14. axb5 {[%clk 0:02:08.5]} 14... Qxb5 {[%clk 0:02:04.7]} 15. bxc4
{[%clk 0:02:08.2]} 15... dxc4 {[%clk 0:02:05.6]} 16. Ne5 {[%clk 0:02:00.3]}
16... Nxe5 {[%clk 0:01:50]} 17. Ra5 {[%clk 0:01:49.7]} 17... Qb2 {[%clk
0:01:22.6]} 18. Bxe4 {[%clk 0:01:33.6]} 18... Bh3 {[%clk 0:01:17.1]} 19. Bxa8
{[%clk 0:01:24.9]} 19... Bxf1 {[%clk 0:01:01.6]} 20. Kxf1 {[%clk 0:01:20.4]}
20... Ng4 {[%clk 0:01:00.7]} 21. h3 {[%clk 0:00:59.1]} 21... Rxa8 {[%clk
0:00:17.3]} 22. hxg4 {[%clk 0:00:58.5]} 22... h6 {[%clk 0:00:12]} 23. Rc5 {[%clk
0:00:44.5]} 23... Qb7 {[%clk 0:00:07.4]} 24. d5 {[%clk 0:00:43.1]} 24... Rc8
{[%clk 0:00:05.7]} 25. Rxc8+ {[%clk 0:00:39.7]} 25... Qxc8 {[%clk 0:00:06.6]}
26. Qd4 {[%clk 0:00:38.7]} 26... Kf8 {[%clk 0:00:05.8]} 27. Bb4+ {[%clk
0:00:38.5]} 27... Ke8 {[%clk 0:00:06]} 28. Qe5+ {[%clk 0:00:35.4]} 1-0

[Event "Early-Titled-Tuesday-Blitz-April-16-2024"]
[Site "Chess.com"]
[Date "2024.04.16"]
[Round "3"]
[White "Nf3c5"]
[Black "ChessSG1"]
[Result "1-0"]
[WhiteElo "2613"]
[BlackElo "2428"]
[TimeControl "180+1"]
[EndTime "8:28:06 PDT"]
[Termination "Nf3c5 won by resignation"]

1. e4 {[%clk 0:03:00.9]} 1... c5 {[%clk 0:02:59.4]} 2. Nc3 {[%clk 0:03:00.9]}
2... g6 {[%clk 0:02:59.4]} 3. d4 {[%clk 0:02:59.8]} 3... cxd4 {[%clk 0:02:56.6]}
4. Qxd4 {[%clk 0:03:00.1]} 4... Nf6 {[%clk 0:02:57.2]} 5. Be3 {[%clk 0:02:58.8]}
5... Nc6 {[%clk 0:02:57]} 6. Qd2 {[%clk 0:02:58.7]} 6... Bg7 {[%clk 0:02:56.7]}
7. f3 {[%clk 0:02:59.2]} 7... O-O {[%clk 0:02:34.3]} 8. Nge2 {[%clk 0:02:52.5]}
8... d5 {[%clk 0:02:28.7]} 9. exd5 {[%clk 0:02:50.2]} 9... Nb4 {[%clk
0:02:28.4]} 10. Nf4 {[%clk 0:02:35.1]} 10... Bf5 {[%clk 0:02:24.5]} 11. Rc1
{[%clk 0:02:35.3]} 11... Rc8 {[%clk 0:02:11.1]} 12. a3 {[%clk 0:02:31.1]} 12...
Nxc2+ {[%clk 0:02:10.6]} 13. Rxc2 {[%clk 0:02:28.8]} 13... Bxc2 {[%clk 0:02:11]}
14. Qxc2 {[%clk 0:02:29.4]} 14... g5 {[%clk 0:02:00]} 15. Nfe2 {[%clk
0:02:20.2]} 15... Nxd5 {[%clk 0:01:58.9]} 16. Bxg5 {[%clk 0:02:15]} 16... Qa5
{[%clk 0:01:21.5]} 17. Bd2 {[%clk 0:02:13.4]} 17... Rfd8 {[%clk 0:01:21.7]} 18.
g3 {[%clk 0:02:03.7]} 18... Nxc3 {[%clk 0:01:17]} 19. Nxc3 {[%clk 0:01:48.5]}
19... Qe5+ {[%clk 0:01:09.2]} 20. Kf2 {[%clk 0:01:39.1]} 20... b5 {[%clk
0:00:52.5]} 21. Bh3 {[%clk 0:01:27.3]} 21... Rc7 {[%clk 0:00:47.4]} 22. Re1
{[%clk 0:01:27.8]} 22... Qc5+ {[%clk 0:00:38]} 23. Be3 {[%clk 0:01:27.4]} 23...
Bd4 {[%clk 0:00:38.2]} 24. Qe4 {[%clk 0:01:13.6]} 24... b4 {[%clk 0:00:26.7]}
25. axb4 {[%clk 0:01:10.9]} 25... Bxe3+ {[%clk 0:00:21.4]} 26. Rxe3 {[%clk
0:01:10.8]} 26... Rd2+ {[%clk 0:00:20.7]} 27. Ne2 {[%clk 0:01:09.9]} 27... Qb5
{[%clk 0:00:12.7]} 28. Bf1 {[%clk 0:01:07.1]} 28... Rcc2 {[%clk 0:00:12.1]} 29.
Qxe7 {[%clk 0:01:04.4]} 29... Qb6 {[%clk 0:00:09.7]} 30. Qe8+ {[%clk 0:01:01.9]}
30... Kg7 {[%clk 0:00:09.8]} 31. Qe5+ {[%clk 0:01:02.5]} 31... Kg8 {[%clk
0:00:10.3]} 32. Kg2 {[%clk 0:00:56.9]} 32... Qxb4 {[%clk 0:00:08.6]} 33. Qg5+
{[%clk 0:00:49.3]} 33... Kf8 {[%clk 0:00:08.8]} 34. Qh6+ {[%clk 0:00:49.6]} 1-0

[Event "Early-Titled-Tuesday-Blitz-April-16-2024"]
[Site "Chess.com"]
[Date "2024.04.16"]
[Round "3"]
[White "gurelediz"]
[Black "GothamChess"]
[Result "1-0"]
[WhiteElo "2950"]
[BlackElo "2658"]
[TimeControl "180+1"]
[EndTime "8:28:10 PDT"]
[Termination "gurelediz won by resignation"]

1. e4 {[%clk 0:03:00.9]} 1... d5 {[%clk 0:02:54.8]} 2. exd5 {[%clk 0:02:56.6]}
2... Qxd5 {[%clk 0:02:55.7]} 3. Nc3 {[%clk 0:02:56.7]} 3... Qa5 {[%clk
0:02:55.5]} 4. d4 {[%clk 0:02:53.1]} 4... Nf6 {[%clk 0:02:55.4]} 5. Nf3 {[%clk
0:02:52.9]} 5... Bf5 {[%clk 0:02:55.2]} 6. Bd3 {[%clk 0:02:52.5]} 6... Bxd3
{[%clk 0:02:55]} 7. Qxd3 {[%clk 0:02:53.4]} 7... e6 {[%clk 0:02:54.8]} 8. O-O
{[%clk 0:02:54]} 8... c6 {[%clk 0:02:54.9]} 9. Bd2 {[%clk 0:02:52.7]} 9... Qa6
{[%clk 0:02:54.2]} 10. Qe3 {[%clk 0:02:45.1]} 10... Be7 {[%clk 0:02:51.3]} 11.
Ne5 {[%clk 0:02:42.1]} 11... Nbd7 {[%clk 0:02:48.4]} 12. Rfe1 {[%clk 0:02:40.3]}
12... Nxe5 {[%clk 0:02:48.4]} 13. Qxe5 {[%clk 0:02:36.6]} 13... Rd8 {[%clk
0:02:43.2]} 14. Ne4 {[%clk 0:02:27.2]} 14... Nxe4 {[%clk 0:02:28.7]} 15. Rxe4
{[%clk 0:02:24.7]} 15... Bf6 {[%clk 0:02:27.7]} 16. Qf4 {[%clk 0:02:16.7]} 16...
Qb6 {[%clk 0:02:21.6]} 17. Bc3 {[%clk 0:02:10.3]} 17... O-O {[%clk 0:02:18.4]}
18. h3 {[%clk 0:02:06.1]} 18... Rd5 {[%clk 0:02:17.1]} 19. Rd1 {[%clk
0:02:03.7]} 19... Rfd8 {[%clk 0:02:15.8]} 20. Rd3 {[%clk 0:02:03.2]} 20... h6
{[%clk 0:02:02.7]} 21. b3 {[%clk 0:01:58.8]} 21... Qa6 {[%clk 0:01:57.7]} 22. a4
{[%clk 0:01:58]} 22... b5 {[%clk 0:01:56.3]} 23. axb5 {[%clk 0:01:53.6]} 23...
cxb5 {[%clk 0:01:56.5]} 24. Bb4 {[%clk 0:01:49.8]} 24... Qa1+ {[%clk 0:01:52]}
25. Kh2 {[%clk 0:01:26.4]} 25... a5 {[%clk 0:01:31]} 26. Bc5 {[%clk 0:01:19.5]}
26... Qb2 {[%clk 0:01:14.6]} 27. Rg3 {[%clk 0:00:52.7]} 27... Rf5 {[%clk
0:00:59.2]} 28. Qxh6 {[%clk 0:00:35.7]} 28... Rxc5 {[%clk 0:00:07.7]} 29. Qxf6
{[%clk 0:00:34.2]} 1-0